bitfinex/quotes_BTCUSD_20251215
["timestamp","ask_amount","ask_price","bid_price","bid_amount"]
[1765762268511,0.45449307,88728.0,88727.0,0.00010016]
[1765762269058,0.56500069,88728.0,88727.0,0.00010016]
[1765762269276,0.56500069,88728.0,88692.0,0.01183871]
[1765762269277,0.56500069,88728.0,88692.0,0.00056374]
[1765762269278,0.22549693,88693.0,88692.0,0.00056374]
[1765762269479,0.27155693,88693.0,88692.0,0.000677]
[1765762269903,0.04606,88693.0,88692.0,0.000677]
[1765762270722,0.04606,88693.0,88692.0,0.002677]
[1765762270936,0.04606,88693.0,88692.0,0.004677]
[1765762271503,0.02229,88693.0,88692.0,0.004677]
[1765762272130,0.04606,88693.0,88692.0,0.004677]
[1765762275486,0.00574,88693.0,88692.0,0.004677]
[1765762275688,0.11811307,88693.0,88692.0,0.004677]
[1765762275890,0.15843307,88693.0,88692.0,0.004677]
[1765762277159,0.13466307,88693.0,88692.0,0.004677]
[1765762277403,0.05,88694.0,88693.0,0.22549693]
[1765762277835,0.05,88694.0,88692.0,0.23178754]
[1765762278039,0.05,88694.0,88692.0,0.00628987]
[1765762278264,0.05,88694.0,88692.0,0.00428987]
[1765762279268,0.11237307,88693.0,88692.0,0.00428987]
[1765762279472,0.11237307,88693.0,88692.0,0.00228987]
[1765762280265,0.05,88694.0,88692.0,0.00228987]
[1765762280266,0.16237307,88694.0,88693.0,0.22549693]
[1765762280471,0.18614307,88694.0,88693.0,0.22549693]
[1765762280814,0.16237307,88694.0,88693.0,0.22549693]
[1765762281555,0.05,88694.0,88693.0,0.2695698]
[1765762281908,0.02377,88709.0,88693.0,0.2695698]
[1765762281909,0.00574,88710.0,88707.0,0.01127306]
[1765762282079,0.02377,88718.0,88710.0,0.23672599]
[1765762282240,0.01147,88737.0,88710.0,0.23672599]
[1765762282241,0.01127078,88725.0,88721.0,0.01127128]
[1765762282848,0.02907052,88727.0,88721.0,0.01127128]
[1765762282849,0.02907052,88727.0,88722.0,0.01127116]
[1765762283195,0.02907052,88727.0,88723.0,0.01127103]
[1765762283365,0.11237307,88724.0,88723.0,0.01138429]
[1765762284100,0.15269307,88724.0,88723.0,0.00011326]
[1765762284330,0.04032,88724.0,88723.0,0.00011326]
[1765762284532,0.04132,88724.0,88723.0,0.00011326]
[1765762285295,0.15369307,88724.0,88723.0,0.00011326]
[1765762285666,0.15469307,88724.0,88723.0,0.00011326]
[1765762287497,1.15469307,88724.0,88723.0,0.00011326]
[1765762287783,0.26429307,88724.0,88723.0,0.00011326]
[1765762288135,0.26729307,88724.0,88723.0,0.00011326]
[1765762288334,0.37329307,88724.0,88723.0,0.00011326]
[1765762288601,0.30779307,88724.0,88723.0,0.00011326]
[1765762288878,0.15569307,88724.0,88723.0,0.00011326]
[1765762289093,0.17752137,88724.0,88723.0,0.00011326]
[1765762289222,0.19732137,88724.0,88723.0,0.00011326]
[1765762289595,0.17952137,88724.0,88723.0,0.00011326]
[1765762289741,0.19732137,88724.0,88723.0,0.00011326]
[1765762290985,0.13392307,88724.0,88723.0,0.00011326]
[1765762291216,0.02155,88724.0,88723.0,0.00011326]
[1765762291374,0.005,88724.0,88723.0,0.00011326]
[1765762291717,0.005,88724.0,88722.0,0.2254224]
[1765762291718,0.11237307,88723.0,88721.0,0.02205128]
[1765762291854,0.11237307,88723.0,88721.0,0.02216631]
[1765762292486,0.11237307,88723.0,88722.0,0.22542323]
[1765762292659,0.11237307,88723.0,88721.0,0.01089503]
[1765762292863,0.11237307,88723.0,88721.0,0.00111503]
[1765762294175,0.0381,88722.0,88721.0,0.00111503]
[1765762294373,0.15047307,88722.0,88721.0,0.00111503]
[1765762294806,0.01515,88722.0,88721.0,0.00111503]
[1765762294973,0.12752307,88722.0,88721.0,0.00011503]
[1765762295172,0.12752307,88722.0,88721.0,0.00111503]
[1765762295374,0.01515,88722.0,88721.0,0.00111503]
[1765762295812,0.23668468,88726.0,88721.0,0.00111503]
[1765762295813,0.01147,88728.0,88724.0,0.23668844]
[1765762296007,0.01147,88728.0,88726.0,0.22541306]
[1765762296208,0.01147,88728.0,88724.0,0.0112709]
[1765762296405,0.01127052,88727.0,88723.0,0.01127103]
[1765762296616,0.11237307,88724.0,88723.0,0.01127103]
[1765762297225,0.11237307,88724.0,88721.0,0.0017279]
[1765762297440,0.12364397,88724.0,88721.0,0.01299918]
[1765762297596,0.11237307,88724.0,88721.0,0.01299918]
[1765762298957,0.11237307,88724.0,88722.0,0.22542323]
[1765762299191,0.12464397,88724.0,88721.0,0.01299918]
[1765762299399,0.12364397,88724.0,88721.0,0.01299918]
[1765762300867,0.11237307,88724.0,88721.0,0.23842383]
[1765762301688,0.34905415,88727.0,88723.0,0.01127103]
[1765762302228,0.03023263,88759.0,88723.0,0.01127103]
[1765762302229,0.01126963,88734.0,88730.0,0.01127014]
[1765762302510,0.01126963,88734.0,88729.0,0.01127027]
[1765762302685,0.01126976,88733.0,88729.0,0.01127027]
[1765762303033,0.01126976,88733.0,88728.0,0.01127039]
[1765762303034,0.01126989,88732.0,88728.0,0.01127039]
[1765762303234,0.01126989,88732.0,88725.0,0.23668639]
[1765762303235,0.01127001,88731.0,88726.0,0.01127065]
[1765762303365,0.11237307,88728.0,88726.0,0.01127065]
[1765762305780,0.11337307,88728.0,88726.0,0.01127065]
[1765762306619,0.12464346,88728.0,88723.0,0.00161287]
[1765762306831,0.01515,88724.0,88723.0,0.00161287]
[1765762307040,0.12752307,88724.0,88723.0,0.00161287]
[1765762307489,0.15047307,88724.0,88723.0,0.00161287]
[1765762307690,0.11237307,88724.0,88723.0,0.00261287]
[1765762307898,0.23668104,88727.0,88723.0,0.00261287]
[1765762307899,0.001,88728.0,88725.0,0.01127078]
[1765762308142,0.001,88728.0,88726.0,0.24795436]
[1765762308374,0.001,88728.0,88726.0,0.22541306]
[1765762308999,0.02295,88736.0,88732.0,0.01126989]
[1765762309205,0.02295,88736.0,88732.0,0.23666736]
[1765762309406,0.02295,88734.0,88732.0,0.23666736]
[1765762309607,0.01147,88737.0,88734.0,0.22539274]
[1765762309818,0.01147,88744.0,88742.0,0.22537223]
[1765762310103,0.02054735,88752.0,88742.0,0.22537223]
[1765762310105,0.01219,88758.0,88746.0,0.22536226]
[1765762310323,0.01219,88769.0,88746.0,0.22536226]
[1765762310324,0.11237307,88762.0,88746.0,0.24350513]
[1765762310537,0.11237307,88762.0,88746.0,0.26797513]
[1765762310741,0.02345633,88760.0,88746.0,0.26797513]
[1765762310960,0.0178,88765.0,88746.0,0.26797513]
[1765762311166,0.01219,88766.0,88746.0,0.26797513]
[1765762311167,0.01909557,88766.0,88746.0,0.26797513]
[1765762311381,0.00783,88766.0,88746.0,0.26797513]
[1765762311583,0.0112657,88765.0,88746.0,0.26797513]
[1765762311791,0.11237307,88760.0,88746.0,0.26797513]
[1765762312177,0.11237307,88760.0,88746.0,0.26897513]
[1765762312389,0.00124496,88747.0,88746.0,0.26897513]
[1765762312816,0.00024496,88747.0,88746.0,0.26897513]
[1765762313017,0.00024496,88747.0,88746.0,0.27097513]
[1765762313396,0.00024496,88747.0,88746.0,0.26997513]
[1765762313608,0.00024496,88747.0,88746.0,0.27197513]
[1765762315152,0.00024496,88747.0,88746.0,0.28977513]
[1765762316251,0.00024496,88747.0,88746.0,0.74281101]
[1765762316875,0.00024496,88747.0,88746.0,0.78286523]
[1765762317264,0.00024496,88747.0,88746.0,0.74281101]
[1765762321094,0.01126519,88812.0,88746.0,0.74281101]
[1765762321095,0.01056,88784.0,88772.0,0.22529626]
[1765762321313,0.02369,88781.0,88772.0,0.22529626]
[1765762321532,0.02369,88781.0,88770.0,0.23656459]
[1765762321533,0.11356892,88773.0,88770.0,0.23656459]
[1765762321755,0.11356892,88773.0,88766.0,0.01126557]
[1765762321756,0.01523,88771.0,88766.0,0.01126557]
[1765762321962,0.02369,88772.0,88766.0,0.01126557]
[1765762321963,0.11237307,88767.0,88766.0,0.01126557]
[1765762322380,0.11237307,88767.0,88766.0,0.0113806]
[1765762322590,0.01126519,88769.0,88766.0,0.0113806]
[1765762322789,0.11237307,88767.0,88766.0,0.0113806]
[1765762323471,0.11237307,88767.0,88766.0,0.0123806]
[1765762323854,0.11237307,88767.0,88766.0,0.0133806]
[1765762324054,0.11237307,88767.0,88766.0,0.0123806]
[1765762324371,0.11237307,88767.0,88766.0,0.0133806]
[1765762324577,0.0004,88773.0,88772.0,0.22529626]
[1765762324754,0.0004,88773.0,88772.0,0.24223913]
[1765762324955,0.0004,88773.0,88772.0,0.26708913]
[1765762325789,0.0004,88773.0,88772.0,0.35172921]
[1765762326536,0.0014,88773.0,88772.0,0.35172921]
[1765762326705,0.0004,88773.0,88772.0,0.64442921]
[1765762326904,0.0004,88773.0,88772.0,0.6944476]
[1765762327109,0.0004,88773.0,88772.0,0.6954476]
[1765762327564,0.0004,88810.0,88807.0,0.23646537]
[1765762327787,0.0004,88810.0,88808.0,0.22520493]
[1765762327993,0.02409,88810.0,88797.0,0.02211164]
[1765762328197,0.11237307,88805.0,88802.0,0.23648115]
[1765762328589,0.0004,88810.0,88807.0,0.01126037]
[1765762328810,0.01173384,88810.0,88807.0,0.01126037]
[1765762329218,0.00047385,88810.0,88807.0,0.01126037]
[1765762329468,0.11337307,88805.0,88804.0,0.01126075]
[1765762329676,0.11337307,88805.0,88804.0,0.01287362]
[1765762329677,0.001,88805.0,88804.0,0.01287362]
[1765762329884,0.001,88805.0,88804.0,0.1905395]
[1765762330089,0.00047385,88810.0,88808.0,0.22520493]
[1765762330090,0.00347385,88810.0,88808.0,0.22520493]
[1765762330286,0.00047385,88810.0,88809.0,0.01533]
[1765762330542,0.00047385,88810.0,88809.0,0.09799787]
[1765762330738,0.00047385,88810.0,88809.0,0.04179287]
[1765762331348,0.00247385,88810.0,88809.0,0.03474287]
[1765762331708,0.00247385,88810.0,88809.0,0.05959287]
[1765762331841,0.00047385,88810.0,88809.0,0.05959287]
[1765762332250,0.00047385,88810.0,88809.0,0.06059287]
[1765762332472,0.00240145,88810.0,88809.0,0.35129287]
[1765762332743,0.00240145,88810.0,88809.0,0.51262875]
[1765762334255,0.00240145,88810.0,88809.0,0.51462875]
[1765762334948,0.00240145,88810.0,88809.0,0.51762875]
[1765762335334,0.00240145,88810.0,88809.0,0.40531126]
[1765762335653,0.00240145,88810.0,88809.0,0.03774287]
[1765762336035,0.00240145,88810.0,88809.0,0.06459287]
[1765762336379,0.00240145,88810.0,88809.0,0.06259287]
[1765762336573,0.00240145,88810.0,88809.0,0.22492875]
[1765762337253,0.00240145,88810.0,88809.0,0.22192875]
[1765762338474,0.00240145,88810.0,88809.0,0.22492875]
[1765762338888,0.00240145,88810.0,88809.0,0.22692875]
[1765762339181,0.00240145,88810.0,88809.0,0.10658295]
[1765762339325,0.00240145,88810.0,88809.0,0.1698817]
[1765762339530,0.00240145,88810.0,88809.0,0.21990009]
[1765762339779,0.00240145,88810.0,88809.0,0.33221758]
[1765762339983,0.00240145,88810.0,88809.0,0.31156883]
[1765762340234,0.00240145,88810.0,88809.0,0.60026883]
[1765762340414,0.00240145,88810.0,88809.0,0.59726883]
[1765762340778,0.00240145,88810.0,88809.0,0.39228295]
[1765762340975,0.00240145,88810.0,88809.0,0.41008295]
[1765762341188,0.00240145,88810.0,88809.0,0.43493295]
[1765762341756,0.00240145,88810.0,88809.0,0.54725044]
[1765762341894,0.00240145,88810.0,88809.0,0.43793295]
[1765762342297,0.00240145,88810.0,88809.0,0.31064287]
[1765762342571,0.00240145,88810.0,88809.0,0.43793295]
[1765762343010,0.00240145,88810.0,88809.0,0.43993295]
[1765762343418,0.00240145,88810.0,88809.0,0.43693295]
[1765762343833,0.00240145,88810.0,88809.0,0.43893295]
[1765762345217,0.00240145,88810.0,88809.0,0.03874287]
[1765762345378,0.00240145,88810.0,88809.0,0.02341287]
[1765762346250,0.00240145,88810.0,88809.0,0.02141287]
[1765762346459,0.00240145,88810.0,88809.0,0.01941287]
[1765762346668,0.11237307,88805.0,88804.0,0.01126075]
[1765762346873,0.12756307,88805.0,88804.0,0.01126075]
[1765762347263,0.00047385,88810.0,88807.0,0.01126037]
[1765762347467,0.11237307,88807.0,88804.0,0.01126075]
[1765762348154,0.01126012,88809.0,88805.0,0.01126062]
[1765762348354,0.01126012,88809.0,88803.0,0.23647783]
[1765762348355,0.01519,88805.0,88803.0,0.01126088]
[1765762348572,0.01126037,88807.0,88804.0,0.01126075]
[1765762348782,0.23693416,88810.0,88808.0,0.2252045]
[1765762348783,0.00047385,88810.0,88808.0,0.2252045]
[1765762348983,0.00047385,88810.0,88809.0,0.08464008]
[1765762349412,0.00047385,88810.0,88809.0,0.14394491]
[1765762349616,0.00047385,88810.0,88809.0,0.12467008]
[1765762349825,0.00047385,88810.0,88809.0,0.14394564]
[1765762350209,0.00047385,88810.0,88809.0,0.12467008]
[1765762350416,0.00047385,88810.0,88808.0,0.2252045]
[1765762350859,0.00047385,88810.0,88807.0,0.01126037]
[1765762350860,0.22520493,88808.0,88802.0,0.011261]
[1765762351182,0.12363344,88807.0,88804.0,0.01126075]
[1765762352035,0.00177472,88805.0,88804.0,0.01126075]
[1765762353047,0.00177472,88805.0,88802.0,0.011261]
[1765762353048,0.04116472,88805.0,88802.0,0.011261]
[1765762353197,0.01582,88804.0,88802.0,0.011261]
[1765762353602,0.01582,88804.0,88795.0,0.22523643]
[1765762353603,0.0112605,88806.0,88795.0,0.01126189]
[1765762353604,0.01126138,88799.0,88795.0,0.01126189]
[1765762353828,0.02749,88796.0,88795.0,0.01126189]
[1765762354428,0.02749,88796.0,88790.0,0.01126252]
[1765762354429,0.01126202,88794.0,88790.0,0.01126252]
[1765762354630,0.01126202,88794.0,88785.0,0.0178]
[1765762354631,0.02823,88788.0,88785.0,0.01126316]
[1765762354807,0.02823,88788.0,88786.0,0.22526073]
[1765762355214,0.01241,88788.0,88786.0,0.22526073]
[1765762355454,0.01241,88788.0,88785.0,0.01126316]
[1765762355455,0.12404307,88796.0,88793.0,0.01126214]
[1765762355681,0.12404307,88796.0,88795.0,0.08464008]
[1765762355882,0.12404307,88796.0,88795.0,0.08564008]
[1765762356105,0.13986307,88796.0,88795.0,0.08564008]
[1765762356284,0.16343307,88796.0,88795.0,0.08464008]
[1765762356851,0.16443307,88796.0,88795.0,0.08464008]
[1765762357050,0.16443307,88796.0,88784.0,0.22526418]
[1765762357051,0.01126265,88789.0,88784.0,0.22526418]
[1765762357185,0.02708252,88790.0,88786.0,0.01126303]
[1765762357526,0.11237307,88787.0,88786.0,0.01126303]
[1765762357747,0.12819307,88787.0,88786.0,0.01126303]
[1765762358001,0.15176307,88787.0,88786.0,0.01126303]
[1765762358253,0.01582,88787.0,88786.0,0.01126303]
[1765762358600,0.01582,88787.0,88784.0,0.22526418]
[1765762358986,0.01582,88786.0,88785.0,0.001]
[1765762359411,0.03939,88786.0,88784.0,0.22526549]
[1765762359620,0.3488796,88793.0,88788.0,0.01126278]
[1765762359780,0.12363521,88793.0,88789.0,0.01126265]
[1765762360192,0.01126227,88792.0,88789.0,0.01126265]
[1765762360388,0.23651187,88791.0,88785.0,0.01126316]
[1765762360590,0.23651187,88791.0,88786.0,0.01126303]
[1765762360830,0.12363521,88793.0,88789.0,0.01126265]
[1765762361865,0.11237307,88793.0,88790.0,0.23651293]
[1765762361997,0.11237307,88793.0,88790.0,0.01126252]
[1765762362192,0.11237307,88793.0,88790.0,0.23651257]
[1765762363199,0.24816825,88796.0,88793.0,0.01126214]
[1765762363200,0.01167,88796.0,88793.0,0.01126214]
[1765762363366,0.01167,88796.0,88793.0,0.23650406]
[1765762363611,0.03524,88796.0,88793.0,0.23650406]
[1765762365160,0.03598,88803.0,88800.0,0.01126126]
[1765762365566,0.03598,88803.0,88797.0,0.01126164]
[1765762365567,0.0016524,88801.0,88798.0,0.23649154]
[1765762365829,0.04724088,88803.0,88800.0,0.01126126]
[1765762366028,0.02367088,88803.0,88800.0,0.01126126]
[1765762366315,0.011261,88802.0,88799.0,0.01126138]
[1765762366746,0.12363407,88802.0,88799.0,0.01126138]
[1765762367486,0.04924088,88803.0,88799.0,0.01126138]
[1765762367487,0.002,88803.0,88800.0,0.01126126]
[1765762367685,0.11284692,88810.0,88800.0,0.01126126]
[1765762367686,0.11284692,88810.0,88807.0,0.23646566]
[1765762367892,0.11284692,88810.0,88808.0,0.22520493]
[1765762368501,0.13641692,88810.0,88807.0,0.01126037]
[1765762368725,0.00047385,88810.0,88808.0,0.22520493]
[1765762368986,0.00347385,88810.0,88808.0,0.22520493]
[1765762369595,0.00047385,88810.0,88808.0,0.22520493]
[1765762370379,0.00447385,88810.0,88808.0,0.22520493]
[1765762370831,0.00447385,88810.0,88809.0,0.03869]
[1765762371104,0.00447385,88810.0,88809.0,0.04030287]
[1765762371105,0.00747385,88810.0,88809.0,0.04030287]
[1765762371458,0.00940145,88810.0,88809.0,0.04030287]
[1765762371893,0.00640145,88810.0,88809.0,0.04030287]
[1765762372715,0.00240145,88810.0,88809.0,0.04030287]
[1765762373633,0.00340145,88810.0,88809.0,0.04030287]
[1765762373843,0.00240145,88810.0,88809.0,0.04030287]
[1765762375385,0.00240145,88810.0,88808.0,0.22520493]
[1765762375387,0.04179145,88810.0,88808.0,0.22520493]
[1765762375596,0.00047385,88810.0,88809.0,0.08464008]
[1765762376237,0.00047385,88810.0,88809.0,0.09992008]
[1765762376390,0.00047385,88810.0,88809.0,0.12333008]
[1765762376786,0.00247385,88810.0,88809.0,0.12333008]
[1765762377006,0.00047385,88810.0,88809.0,0.09992008]
[1765762377201,0.00147385,88810.0,88809.0,0.09992008]
[1765762377423,0.00147385,88810.0,88809.0,0.12434008]
[1765762377605,0.00147385,88810.0,88809.0,0.12595295]
[1765762377832,0.00047385,88810.0,88809.0,0.12595295]
[1765762378893,0.00047385,88810.0,88809.0,0.00161287]
[1765762379719,0.00047385,88810.0,88809.0,0.01731287]
[1765762379941,0.00047385,88810.0,88809.0,0.12637295]
[1765762380120,0.00047385,88810.0,88809.0,0.14672806]
[1765762380637,0.00047385,88810.0,88809.0,0.25904555]
[1765762380836,0.00047385,88810.0,88809.0,0.23869044]
[1765762381042,0.00240145,88810.0,88809.0,0.00161287]
[1765762381240,0.00240145,88810.0,88808.0,0.22520493]
[1765762381570,0.00189702,88809.0,88808.0,0.22520493]
[1765762381786,0.00189702,88809.0,88808.0,0.2268178]
[1765762381989,0.00189702,88809.0,88808.0,0.2425178]
[1765762382126,0.00189702,88809.0,88808.0,0.29253619]
[1765762382310,0.00189702,88809.0,88808.0,0.60765619]
[1765762382520,0.00189702,88809.0,88808.0,0.71997368]
[1765762383566,0.0004,88816.0,88815.0,0.22518718]
[1765762383771,0.02266,88850.0,88835.0,0.22513648]
[1765762383772,0.01125492,88850.0,88835.0,0.22513648]
[1765762383939,0.00048437,88836.0,88835.0,0.24244935]
[1765762384196,0.00048437,88836.0,88835.0,0.26686935]
[1765762384363,0.00048437,88836.0,88835.0,0.64220943]
[1765762386027,0.00048437,88836.0,88835.0,0.66000943]
[1765762386661,0.00048437,88836.0,88835.0,0.66200943]
[1765762387039,0.00048437,88836.0,88835.0,0.66400943]
[1765762387456,0.00048437,88836.0,88835.0,0.82634531]
[1765762387658,0.00048437,88836.0,88835.0,0.71402782]
[1765762388207,0.00048437,88836.0,88835.0,0.77023282]
[1765762388607,0.00048437,88836.0,88835.0,0.71402782]
[1765762389368,0.00048437,88836.0,88835.0,0.77023282]
[1765762389569,0.00048437,88836.0,88835.0,0.71402782]
[1765762389725,0.00130996,88836.0,88835.0,0.71402782]
[1765762390130,0.00130996,88836.0,88835.0,0.82634531]
[1765762390527,0.00130996,88836.0,88835.0,0.71402782]
[1765762390728,0.00130996,88836.0,88835.0,0.77023282]
[1765762397288,0.00130996,88836.0,88835.0,0.82634531]
[1765762399112,0.00130996,88836.0,88835.0,0.80854531]
[1765762399307,0.00130996,88836.0,88835.0,0.82634531]
[1765762399787,0.0124,88884.0,88835.0,0.82634531]
[1765762399788,0.14743307,88880.0,88875.0,0.22503473]
[1765762399989,0.01125137,88878.0,88875.0,0.00011503]
[1765762400125,0.0602683,88876.0,88875.0,0.00011503]
[1765762400327,0.03844,88876.0,88875.0,0.00011503]
[1765762400527,0.23203128,88877.0,88875.0,0.00011503]
[1765762400726,0.007,88877.0,88875.0,0.00011503]
[1765762400966,0.23203034,88877.0,88875.0,0.00011503]
[1765762401164,0.11237307,88878.0,88875.0,0.00011503]
[1765762401525,0.01825125,88879.0,88875.0,0.00011503]
[1765762401650,0.23627893,88878.0,88875.0,0.00011503]
[1765762401852,0.01578,88876.0,88875.0,0.00011503]
[1765762402305,0.15081307,88876.0,88875.0,0.00011503]
[1765762403266,0.15381307,88876.0,88875.0,0.00011503]
[1765762404231,0.15381307,88876.0,88852.0,0.23634744]
[1765762404232,0.003,88876.0,88873.0,0.23628973]
[1765762404440,0.01325137,88878.0,88874.0,0.00443]
[1765762404593,0.01325137,88878.0,88874.0,0.01568188]
[1765762404966,0.02267125,88879.0,88874.0,0.01568188]
[1765762404967,0.01142,88879.0,88876.0,0.01125163]
[1765762405099,0.005,88876.0,88875.0,0.23628591]
[1765762405298,0.00622235,88876.0,88875.0,0.23628591]
[1765762405501,0.00122235,88876.0,88874.0,0.01125188]
[1765762405746,0.003,88878.0,88876.0,0.01125163]
[1765762405923,0.003,88878.0,88874.0,0.01125188]
[1765762406083,0.00125289,88877.0,88874.0,0.01125188]
[1765762406289,0.002,88878.0,88875.0,0.23628691]
[1765762406527,0.001,88876.0,88875.0,0.23628691]
[1765762407360,0.003,88876.0,88875.0,0.23628691]
[1765762407766,0.002,88876.0,88875.0,0.23628691]
[1765762408979,0.003,88876.0,88875.0,0.23628691]
[1765762409418,0.003,88876.0,88875.0,0.25132691]
[1765762409731,0.23737043,88901.0,88875.0,0.25132691]
[1765762409733,0.01164,88911.0,88898.0,0.51567693]
[1765762409929,0.00821361,88920.0,88898.0,0.5679098]
[1765762409930,0.22494172,88912.0,88898.0,0.5679098]
[1765762410066,0.01124732,88910.0,88898.0,0.5619798]
[1765762410271,0.01164,88911.0,88898.0,0.5619798]
[1765762410475,0.0112472,88911.0,88898.0,0.5857098]
[1765762410740,0.23617653,88917.0,88898.0,0.5857098]
[1765762410741,0.01124669,88915.0,88898.0,0.5857098]
[1765762410892,0.01124707,88912.0,88898.0,0.5857098]
[1765762411093,0.01124694,88913.0,88898.0,0.5857098]
[1765762411303,0.01124669,88915.0,88898.0,0.5679098]
[1765762411508,0.01164,88919.0,88898.0,0.5857098]
[1765762411966,0.0023247,88899.0,88898.0,0.63872819]
[1765762412770,0.0023247,88899.0,88898.0,0.74904568]
[1765762412974,0.0023247,88899.0,88898.0,0.73124568]
[1765762413123,0.0023247,88899.0,88898.0,0.5867098]
[1765762413322,0.0023247,88899.0,88898.0,0.5857098]
[1765762413558,0.0023247,88899.0,88898.0,0.5877098]
[1765762413737,0.0023247,88899.0,88898.0,0.2970098]
[1765762413938,4.7e-06,88899.0,88898.0,0.34502819]
[1765762414136,0.00821361,88920.0,88898.0,0.34502819]
[1765762414137,0.00821361,88920.0,88919.0,0.2249238]
[1765762414347,0.00821361,88920.0,88919.0,0.2399638]
[1765762414553,0.00821361,88920.0,88919.0,0.2636938]
[1765762414803,0.00821361,88920.0,88919.0,0.2399638]
[1765762415375,0.00921361,88920.0,88919.0,0.24007892]
[1765762415896,0.00921361,88920.0,88919.0,0.26380892]
[1765762415897,0.00821361,88920.0,88919.0,0.26380892]
[1765762416064,0.00821361,88920.0,88919.0,0.26542179]
[1765762416523,0.00921361,88920.0,88919.0,0.26542179]
[1765762416886,0.00821361,88920.0,88919.0,0.26542179]
[1765762417086,0.00821361,88920.0,88919.0,0.37773928]
[1765762417292,0.00821361,88920.0,88919.0,0.32162679]
[1765762417293,0.00921361,88920.0,88919.0,0.32162679]
[1765762417489,0.00921361,88920.0,88919.0,0.61232679]
[1765762417687,0.00921361,88920.0,88919.0,0.66234518]
[1765762418172,0.00921361,88920.0,88919.0,0.58241018]
[1765762418398,0.00921361,88920.0,88919.0,0.60614018]
[1765762418604,0.00921361,88920.0,88919.0,0.57392179]
[1765762419026,0.00921361,88920.0,88919.0,0.55612179]
[1765762419226,0.00921361,88920.0,88919.0,0.32526799]
[1765762419471,0.00921361,88920.0,88919.0,0.30746799]
[1765762419673,0.0098548,88920.0,88919.0,0.00172799]
[1765762420468,0.0098548,88920.0,88919.0,0.00011512]
[1765762420680,0.0098548,88920.0,88919.0,0.20283387]
[1765762420881,0.0098548,88920.0,88919.0,0.01676799]
[1765762421512,0.0098548,88920.0,88919.0,0.04049799]
[1765762421891,0.0098548,88920.0,88919.0,0.12513807]
[1765762422311,0.0098548,88920.0,88919.0,0.01676799]
[1765762422510,0.0098548,88920.0,88919.0,0.08636807]
[1765762422894,0.0098548,88920.0,88919.0,0.12513807]
[1765762424117,0.0098548,88920.0,88919.0,0.10140807]
[1765762424519,0.0098548,88920.0,88919.0,0.12513807]
[1765762424723,0.0098548,88920.0,88919.0,0.10140807]
[1765762425505,0.0098548,88920.0,88919.0,0.08636807]
[1765762426119,0.0098548,88920.0,88919.0,0.00011512]
[1765762426741,0.0485048,88920.0,88919.0,0.00011512]
[1765762427335,0.16087787,88920.0,88919.0,0.00011512]
[1765762428426,0.0485048,88920.0,88919.0,0.00011512]
[1765762429539,0.0098548,88920.0,88919.0,0.00011512]
[1765762429729,0.0098548,88920.0,88919.0,0.0847552]
[1765762430108,0.0098548,88920.0,88919.0,0.12513807]
[1765762431134,0.0098548,88920.0,88919.0,0.43833045]
[1765762431385,0.0098548,88920.0,88919.0,0.57817395]
[1765762432297,0.0002,88925.0,88919.0,0.57817395]
[1765762432298,0.0002,88925.0,88924.0,0.40301749]
[1765762432507,0.0002,88925.0,88924.0,0.43747036]
[1765762432705,0.0002,88925.0,88924.0,0.46120036]
[1765762433082,0.0002,88925.0,88924.0,0.34888287]
[1765762433281,0.0002,88925.0,88924.0,0.33108287]
[1765762433480,0.0002,88925.0,88924.0,0.34888287]
[1765762433720,0.0002,88925.0,88924.0,0.46120036]
[1765762433881,0.0002,88925.0,88924.0,0.51121875]
[1765762434219,0.0002,88925.0,88924.0,0.39990126]
[1765762434389,0.01133151,88956.0,88953.0,0.01124189]
[1765762434390,9e-05,88956.0,88953.0,0.01124189]
[1765762434796,9e-05,88956.0,88955.0,0.08464008]
[1765762435052,0.01124214,88951.0,88948.0,0.01124252]
[1765762435264,0.01124176,88954.0,88938.0,0.22487515]
[1765762435265,0.25790606,88954.0,88947.0,0.23609565]
[1765762435469,0.01124176,88954.0,88948.0,0.01124252]
[1765762435619,0.00038516,88954.0,88951.0,0.01124214]
[1765762435819,0.00038516,88954.0,88950.0,0.01124227]
[1765762435820,0.01124189,88953.0,88950.0,0.01124227]
[1765762436021,0.01124189,88953.0,88949.0,0.01124239]
[1765762436342,0.00038516,88954.0,88952.0,0.01504]
[1765762436541,0.00238516,88954.0,88953.0,0.01618]
[1765762437046,0.01124227,88950.0,88945.0,0.0450729]
[1765762437187,0.01124239,88949.0,88946.0,0.01124277]
[1765762437591,0.01124201,88952.0,88947.0,0.01124265]
[1765762437843,0.01124214,88951.0,88948.0,0.01124252]
[1765762438044,0.003,88953.0,88951.0,0.01618]
[1765762438490,0.00097659,88952.0,88951.0,0.01618]
[1765762438742,0.00097659,88952.0,88951.0,0.22484289]
[1765762438918,0.0122186,88952.0,88948.0,0.02012252]
[1765762439120,0.01124201,88952.0,88948.0,0.02012252]
[1765762439756,0.01124227,88950.0,88946.0,0.01124277]
[1765762439872,0.01124277,88946.0,88943.0,0.00888]
[1765762440082,0.22485805,88945.0,88943.0,0.00888]
[1765762440277,0.0112429,88945.0,88941.0,0.0112434]
[1765762440543,0.0112429,88945.0,88942.0,0.01124328]
[1765762440715,0.01124265,88947.0,88944.0,0.01124302]
[1765762440926,0.0112429,88945.0,88941.0,0.0112434]
[1765762441132,0.0112429,88945.0,88937.0,0.01124391]
[1765762441133,0.01124353,88940.0,88937.0,0.01124391]
[1765762441298,0.25346564,88942.0,88937.0,0.01124391]
[1765762441299,0.0122,88942.0,88940.0,0.22487069]
[1765762441498,0.11337307,88952.0,88947.0,0.01124265]
[1765762441702,0.01124227,88950.0,88945.0,0.0112429]
[1765762441948,0.01124252,88948.0,88944.0,0.01124302]
[1765762442158,0.01124277,88946.0,88942.0,0.001]
[1765762442381,0.23609507,88948.0,88944.0,0.01124302]
[1765762442592,0.01124227,88950.0,88945.0,0.23610095]
[1765762442803,0.01124227,88950.0,88947.0,0.01124265]
[1765762442982,0.01124239,88949.0,88945.0,0.0112429]
[1765762443136,0.01124239,88949.0,88946.0,0.01124277]
[1765762443342,0.22486913,88941.0,88939.0,0.08464008]
[1765762443548,0.0122,88940.0,88939.0,0.08464008]
[1765762443760,0.01124391,88937.0,88933.0,0.02904441]
[1765762443961,0.22487322,88939.0,88933.0,0.02904441]
[1765762443962,0.01124366,88939.0,88934.0,0.08464008]
[1765762444166,0.01124366,88939.0,88934.0,0.09588437]
[1765762444167,0.01124391,88937.0,88934.0,0.09588437]
[1765762444365,0.01124391,88937.0,88934.0,0.08464008]
[1765762444366,0.22487828,88937.0,88934.0,0.08464008]
[1765762444637,0.01124391,88937.0,88934.0,0.08464008]
[1765762445179,0.22488081,88936.0,88934.0,0.08464008]
[1765762445376,0.22488081,88936.0,88907.0,0.08972012]
[1765762445377,0.22488081,88936.0,88921.0,0.22491874]
[1765762445378,0.01124543,88925.0,88921.0,0.22491874]